[Event "VIII Open Semana Santa 2024"]
[Site "San Vicente del Raspeig"]
[Date "2024.03.28"]
[Round "2.2"]
[White "Ivanchuk, Vasyl"]
[Black "Pogorelov, Ruslan"]
[Result "1-0"]
[ECO "B18"]
[WhiteElo "2625"]
[BlackElo "2272"]
[Annotator "TA"]
[PlyCount "71"]
[EventDate "2024.03.27"]
[EventType "swiss"]
[EventCountry "ESP"]
[SourceTitle "playchess.com"]
[Source "ChessBase"]
[SourceQuality "1"]
[TimeControl "5400+30"]

{[%evp 15,71,9,4,0,20,14,11,10,0,10,16,25,21,0,14,-9,22,4,21,12,12,0,42,35,45,48,77,78,73,67,68,20,64,16,70,73,65,35,142,134,138,151,131,147,146,141,120,106,184,185,195,188,400,376,404,401,450,445]} 1. e4 {[%emt 0:00:04]} c6 {[%emt 0:00:13]} 2. d4 {[%emt 0:00:08]} d5 {[%emt 0:00:06]} 3. Nd2 {[%emt 0:00:05]} dxe4 {[%emt 0:00:09]} 4. Nxe4 {[%emt 0:00:03]} Bf5 {[%emt 0:00:12]} 5. Ng3 {[%emt 0:00:05]} Bg6 {[%emt 0:00:05]} 6. Nh3 {[%emt 0:01:25]} e6 {[%emt 0:01:28]} 7. Nf4 {[%emt 0:00:05]} Bd6 {[%emt 0:00:47]} 8. c3 {[%emt 0:01:30]} Nf6 {[%emt 0:21:39]} 9. h4 {[%emt 0:00:39]} Bxf4 {[%emt 0:00:30]} 10. Bxf4 {[%emt 0:00:06] Threatens to win with h5.} h6 {[%emt 0:00:08] Black is weak on the dark squares} 11. Qb3 {[%emt 0:05:19] The position is equal.} Qe7 {[%emt 0:00:26]} 12. c4 {[%emt 0:27:46]} O-O {[%emt 0:00:53]} 13. Be2 {[%emt 0:02:25]} Rd8 {[%emt 0:02:23]} 14. Rd1 {[%emt 0:00:47]} a5 {[%emt 0:07:36][%cal Ba7a5,Ba5a4,Ba4a3][%mdl 32]} 15. O-O {[%emt 0:04:55]} a4 {[%emt 0:03:53]} (15... b5 $5) 16. Qe3 {[%emt 0:01:14]} a3 {[%emt 0:06:01]} 17. h5 {[%emt 0:09:04]} Bh7 {[%emt 0:00:13]} 18. Rd2 {[%emt 0:00:22]} b5 {[%emt 0:26:10]} 19. b3 $1 {[%emt 0:12:55]} (19. cxb5 Nd5 20. Qf3 cxb5 $17) 19... bxc4 {[%emt 0:03:55]} 20. bxc4 {[%emt 0:00:28]} Na6 {[%emt 0:06:29]} 21. Bf3 {[%emt 0:10:36]} Nb4 {[%emt 0:01:31]} 22. Rc1 {[%emt 0:00:07]} Ra7 {[%emt 0:00:55]} 23. Ne2 {[%emt 0:02:21]} (23. Rcd1 $14 {is more appropriate.}) 23... Bf5 {[%emt 0:04:14]} 24. Nc3 {[%emt 0:00:17]} (24. Rcd1 $14) 24... Bg4 {[%emt 0:09:29]} (24... Rad7 $11) 25. Bxg4 {[%emt 0:06:34]} Nxg4 {[%emt 0:00:09]} 26. Qg3 {[%emt 0:00:05]} Nf6 {[%emt 0:02:09]} (26... f5 $1 $14) 27. Bxh6 $16 {[%emt 0:00:05][%csl Gh6][%cal Rg3g7]} Nxh5 {[%emt 0:00:17] [#]} 28. Qg4 {[%emt 0:01:10]} Qf6 {[%emt 0:00:57]} 29. Be3 {[%emt 0:03:57]} Qf5 {[%emt 0:00:53]} 30. Qxf5 {[%emt 0:03:41]} exf5 {[%emt 0:00:02]} 31. d5 $36 {[%emt 0:00:05][%mdl 2048] Keeping Black busy.} Rb7 {[%emt 0:00:59]} (31... Rad7 $16 {was necessary.}) 32. Rb1 $18 {[%emt 0:04:04] dxc6 is the strong threat.} cxd5 {[%emt 0:00:50] [#]} 33. Bc5 $1 {[%emt 0:00:16]} ({Much less strong is} 33. Nxd5 $6 Rdb8 $16) 33... Rc8 $2 {[%emt 0:00:43]} (33... Rdb8) 34. Rxb4 {[%emt 0:00:57]} ({Less strong is} 34. Bxb4 Rxc4 35. Bxa3 (35. Nxd5 Nf4 $14) 35... Rxc3 36. Rxb7 Rxa3 $18) 34... Rxb4 {[%emt 0:00:09]} 35. Bxb4 {[%emt 0:00:06]} Rxc4 {[%emt 0:00:23]} 36. Nxd5 {[%emt 0:00:09] Weighted Error Value: White=0.07 (flawless) /Black=0.32.  Mistake:       	White=2     	Black=4      Inaccurate:     	---       	Black=4      OK:         	White=9     	Black=9      Best:        	White=2     	Black=1      Strong:       	White=2     	---} 1-0

[Event "VIII Open Semana Santa 2024"]
[Site "San Vicente del Raspeig"]
[Date "2024.03.28"]
[Round "2.3"]
[White "Villuendas Valero, Adrian"]
[Black "Yuffa, Daniil"]
[Result "0-1"]
[ECO "E54"]
[WhiteElo "2266"]
[BlackElo "2606"]
[Annotator "TA"]
[PlyCount "62"]
[EventDate "2024.03.27"]
[EventType "swiss"]
[EventCountry "ESP"]
[SourceTitle "playchess.com"]
[Source "ChessBase"]
[SourceQuality "1"]
[TimeControl "5400+30"]

{[%evp 21,62,19,27,0,0,-27,-36,-34,-25,-22,-41,-50,-45,-50,-54,-52,-55,-63,-58,-71,-61,-55,-4,-91,-93,-104,-30,-59,-68,-76,-72,-193,-127,-114,-17,-17,-27,-280,-295,-279,-242,-659,-659]} 1. d4 {[%emt 0:00:04]} Nf6 {[%emt 0:00:29]} 2. c4 {[%emt 0:00:12]} e6 {[%emt 0:00:09]} 3. Nc3 {[%emt 0:00:13]} Bb4 {[%emt 0:00:17]} 4. e3 {[%emt 0:00:12]} O-O {[%emt 0:01:08]} 5. Bd3 {[%emt 0:01:08]} d5 {[%emt 0:00:51]} 6. Nf3 {[%emt 0:02:22]} b6 {[%emt 0:02:37]} 7. O-O {[%emt 0:02:02]} Bb7 {[%emt 0:01:18]} 8. a3 {[%emt 0:03:41]} Bxc3 {[%emt 0:07:22]} 9. bxc3 {[%emt 0:00:13]} dxc4 {[%emt 0:00:47]} 10. Bxc4 {[%emt 0:00:21]} c5 {[%emt 0:00:38]} 11. Qe2 {[%emt 0:05:52]} Qc7 {[%emt 0:01:02]} 12. Bd3 {[%emt 0:05:47]} Be4 {[%emt 0:09:12]} 13. Ng5 {[%emt 0:09:12]} Bxd3 {[%emt 0:02:07]} 14. Qxd3 {[%emt 0:03:47] Black is slightly better.} Nbd7 {[%emt 0:07:48]} 15. Bb2 {[%emt 0:12:12]} Rac8 {[%emt 0:13:19]} 16. Rac1 {[%emt 0:13:16]} c4 {[%emt 0:02:08]} 17. Qc2 {[%emt 0:01:11]} e5 {[%emt 0:00:50]} 18. f3 {[%emt 0:08:22]} h6 {[%emt 0:06:05]} 19. Nh3 {[%emt 0:00:54]} b5 {[%emt 0:00:25]} 20. Rb1 {[%emt 0:03:27]} a5 {[%emt 0:07:44]} 21. Bc1 {[%emt 0:01:26]} Rb8 {[%emt 0:01:53]} (21... Qb6 $15) 22. Rd1 {[%emt 0:03:49]} (22. e4 $11) 22... exd4 $1 $17 {[%emt 0:06:28]} 23. Rxd4 {[%emt 0:01:31]} Ne5 {[%emt 0:27:23]} (23... Nc5 $1 $17 24. e4 Nb3) 24. Nf4 {[%emt 0:01:55]} Qc5 {[%emt 0:00:00]} 25. Kh1 {[%emt 0:07:46]} Rfe8 {[%emt 0:00:00]} 26. Rd1 {[%emt 0:07:26]} (26. Qf5 $17 {keeps fighting.}) 26... Rbd8 {[%emt 0:00:00]} (26... g5 $1 $19 {[%cal Rg5f4]} 27. Ne2 Nd3) 27. e4 {[%emt 0:03:18] [#]} Nd3 {[%emt 0:00:00] Black is more active.} 28. Nxd3 $11 {[%emt 0:01:50]} cxd3 $40 {[%emt 0:00:00][%mdl 128] Black attacks.} 29. Rxd3 {[%emt 0:00:29][%mdl 8192]} (29. Qd2 $11 {and White stays safe.}) 29... Qc4 $19 {[%emt 0:00:00]} 30. Rd1 {[%emt 0:00:57] [#]} Nxe4 $1 {[%emt 0:00:00][%mdl 512]} 31. fxe4 $2 {[%emt 0:00:34]} (31. Be3 Rxd1+ (31... Nxc3 $2 32. Rxd8 Rxd8 33. Rc1 $19) 32. Rxd1 Nxc3 33. Rd3) (31. Bb2 Nc5) 31... Qxe4 {[%emt 0:00:00] Weighted Error Value: White=0.64/Black=0.19 (very precise) .  Loses game:     	White=1     	---        Mistake:       	White=3     	Black=4      Inaccurate:     	White=2     	---        OK:         	White=3     	Black=7      Best:        	---       	Black=1      Strong:       	---       	Black=1      Brilliant:      	---       	Black=1} 0-1

[Event "VIII Open Semana Santa 2024"]
[Site "San Vicente del Raspeig"]
[Date "2024.03.28"]
[Round "2.4"]
[White "Piorun, Kacper"]
[Black "Sandu, Mihaela"]
[Result "1-0"]
[ECO "A13"]
[WhiteElo "2599"]
[BlackElo "2270"]
[Annotator "TA"]
[PlyCount "91"]
[EventDate "2024.03.27"]
[EventType "swiss"]
[EventCountry "ESP"]
[SourceTitle "playchess.com"]
[Source "ChessBase"]
[SourceQuality "1"]
[TimeControl "5400+30"]

{[%evp 14,91,0,14,9,0,29,23,39,12,22,0,0,-10,-6,-2,0,0,-9,-10,3,-39,-46,-51,0,0,33,-145,-133,-148,-123,-156,-50,-33,-20,-144,-166,-163,-152,-155,-148,-155,-27,-29,-29,-32,-33,-52,-30,-18,-9,-8,-10,-10,-5,-17,0,0,0,0,0,0,0,0,0,0,0,0,8,8,8,22,29,37,37,37,37,8,250,249]} 1. Nf3 {[%emt 0:00:07]} Nf6 {[%emt 0:00:08]} 2. c4 {[%emt 0:00:37]} e6 {[%emt 0:00:09]} 3. e3 {[%emt 0:00:13]} d5 {[%emt 0:02:09]} 4. b3 {[%emt 0:00:06]} c5 {[%emt 0:03:14]} 5. Bb2 {[%emt 0:00:13]} Nc6 {[%emt 0:00:32]} 6. cxd5 {[%emt 0:00:37]} exd5 {[%emt 0:01:46]} 7. Bb5 {[%emt 0:00:21]} Bd6 {[%emt 0:10:15]} 8. O-O {[%emt 0:08:51]} O-O {[%emt 0:00:47]} 9. d4 {[%emt 0:00:54]} Bg4 {[%emt 0:04:11]} 10. dxc5 {[%emt 0:03:00]} Bxc5 {[%emt 0:00:22] White has an edge.} 11. Bxc6 {[%emt 0:00:49]} bxc6 {[%emt 0:00:07]} 12. Nc3 {[%emt 0:00:20]} Bd6 {[%emt 0:06:12]} 13. Ne2 {[%emt 0:05:48]} Re8 {[%emt 0:04:40]} 14. Rc1 {[%emt 0:03:05]} Rc8 {[%emt 0:02:38]} 15. Ng3 {[%emt 0:02:17]} Ne4 {[%emt 0:06:25]} 16. Qd4 {[%emt 0:08:17][%csl Gb2][%cal Rd4g7]} f6 {[%emt 0:02:00] ...Bxf3 is the strong threat.} 17. Qd3 {[%emt 0:00:43][%cal Oc1c6]} (17. Rxc6 $5 Bxg3 (17... Rxc6 18. Qxd5+ Re6 19. Qxc6 $11) 18. Rxc8 Bxf2+ 19. Rxf2 Qxc8 20. Qxd5+ Kh8 21. Rf1 Bxf3 22. gxf3 $11 (22. Rxf3 Qc2 $11)) 17... Qd7 {[%emt 0:04:07]} 18. Nd4 {[%emt 0:11:47]} Kh8 {[%emt 0:10:10]} (18... Nxg3 $1 $15 19. hxg3 c5) 19. Nde2 $11 {[%emt 0:06:33]} a5 {[%emt 0:07:54]} 20. Qa6 $2 {[%emt 0:06:03]} (20. Nxe4 $14 {keeps the upper hand.} Bxe2 21. Qxe2 Rxe4 22. Rc2) 20... Nc5 $1 $17 {[%emt 0:09:20]} 21. Qxa5 {[%emt 0:01:38]} Nd3 {[%emt 0:01:17][%csl LRb2,LRc1]} 22. Rb1 {[%emt 0:02:18]} Bb4 {[%emt 0:00:53] A strong pair of Bishops.} ({Black should try} 22... Nb4 $1 $17 {aiming for ...Ra8.} 23. a3 Ra8) 23. Qb6 $1 $15 {[%emt 0:00:45]} Bc5 {[%emt 0:01:26][%mdl 1024] Black has compensation.} 24. Qa6 {[%emt 0:08:40]} (24. Qa5 $1 $11) 24... Nb4 $1 $17 {[%emt 0:06:13]} 25. Qa5 {[%emt 0:00:01]} Bd6 {[%emt 0:00:56]} 26. a3 {[%emt 0:06:18] [#]} Ra8 $1 {[%emt 0:01:42]} 27. Qb6 {[%emt 0:00:05] [#]} Nd3 {[%emt 0:05:39]} (27... Nc2 $1 $17 28. Nd4 c5) 28. Qd4 $1 $11 {[%emt 0:04:55]} Nxb2 {[%emt 0:00:05]} 29. Qxb2 {[%emt 0:00:16]} Rxa3 {[%emt 0:00:49]} 30. Qc2 {[%emt 0:02:20]} Rea8 {[%emt 0:01:11]} 31. Nd4 {[%emt 0:02:01]} c5 {[%emt 0:01:37]} 32. Ndf5 {[%emt 0:00:08]} Be5 {[%emt 0:01:17]} (32... Ra2 $5 33. Qd3 $8 Bc7 $11) 33. h3 {[%emt 0:06:15]} Bxf5 {[%emt 0:01:42]} (33... Ra2 $5 34. Qd3 $8 Bxf5 35. Nxf5 R2a3 $11) 34. Nxf5 {[%emt 0:01:18]} c4 {[%emt 0:01:01]} 35. Nd4 $1 {[%emt 0:01:51]} Bxd4 {[%emt 0:01:52]} 36. exd4 {[%emt 0:00:01]} Ra2 {[%emt 0:00:16]} 37. Qc3 {[%emt 0:00:05]} cxb3 {[%emt 0:01:34]} 38. Rxb3 {[%emt 0:00:13]} Qf5 {[%emt 0:00:49]} 39. Qg3 {[%emt 0:01:51] And now Rb8+ would win.} h6 {[%emt 0:00:19]} 40. h4 {[%emt 0:03:36]} Ra1 {[%emt 0:00:35]} 41. Rxa1 {[%emt 0:00:16]} Rxa1+ {[%emt 0:00:15]} 42. Kh2 {[%emt 0:00:02] Strongly threatening Rb7.} Kh7 {[%emt 0:01:03]} 43. Rb7 {[%emt 0:00:31]} Qg6 {[%emt 0:00:21]} 44. Rd7 {[%emt 0:03:12]} Rd1 {[%emt 0:00:51]} 45. Qf4 {[%emt 0:02:09]} Qb1 $2 {[%emt 0:00:46]} (45... Re1 $11 {and Black has nothing to worry.}) 46. Qxf6 {[%emt 0:00:47] White used his chance.   Weighted Error Value: White=0.16 (very precise) /Black=0.23 (precise) .  Loses game:     	---       	Black=1      Mistake:       	White=2     	Black=3      Inaccurate:     	White=3     	Black=2      OK:         	White=14    	Black=9      Best:        	White=3     	---        Strong:       	White=3     	Black=2} ({And not} 46. Rxd5 Rh1+ 47. Kg3 Qb3+ 48. Qf3 Qxf3+ 49. Kxf3 Rxh4 $11) 1-0

[Event "VIII Open Semana Santa 2024"]
[Site "San Vicente del Raspeig"]
[Date "2024.03.28"]
[Round "2.5"]
[White "Toncheva, Nadya"]
[Black "Kourkoulos-Arditis, Stamatis"]
[Result "0-1"]
[ECO "C79"]
[WhiteElo "2257"]
[BlackElo "2556"]
[Annotator "TA"]
[PlyCount "102"]
[EventDate "2024.03.27"]
[EventType "swiss"]
[EventCountry "ESP"]
[SourceTitle "playchess.com"]
[Source "ChessBase"]
[SourceQuality "1"]
[TimeControl "5400+30"]

{[%evp 17,102,6,0,-14,6,-25,0,0,17,-8,0,-36,-41,-31,-22,-68,-64,-64,-62,-75,-68,-72,-68,-64,-66,-58,-61,-61,-45,-47,-29,-58,-29,-38,0,-23,-17,-16,-10,-27,0,0,19,0,18,11,27,-223,-214,-205,-218,-212,-228,-221,-204,-308,-327,-336,-324,-324,-311,-420,-297,-291,-302,-305,-298,-298,-281,-344,-364,-416,-390,-386,-143,-470,-458,-880,-837,-709,-487,-467,-440,-1178,-1072,-29983,-29983]} 1. e4 {[%emt 0:00:02]} e5 {[%emt 0:00:08]} 2. Nf3 {[%emt 0:00:05]} Nc6 {[%emt 0:00:04]} 3. Bb5 {[%emt 0:00:05]} a6 {[%emt 0:00:07]} 4. Ba4 {[%emt 0:00:03]} Nf6 {[%emt 0:00:14]} 5. O-O {[%emt 0:00:07]} d6 {[%emt 0:00:45]} 6. Re1 {[%emt 0:00:05]} Bd7 {[%emt 0:00:18] C79: Spanische Partie (Russische Variante).} 7. c4 {[%emt 0:00:05]} Bg4 {[%emt 0:01:02]} 8. Nc3 $146 {[%emt 0:03:17]} ({Predecessor:} 8. h3 Bxf3 9. Qxf3 Nd7 10. Nc3 Nd4 11. Qd1 Be7 12. Bxd7+ Qxd7 13. d3 c6 14. Be3 {1-0 Romanov,E (2561)-Kobo,O (2541) Groningen op 59th 2023 (5)}) 8... Nd7 {[%emt 0:03:41]} 9. Bxc6 {[%emt 0:00:28]} bxc6 {[%emt 0:00:06]} 10. d3 {[%emt 0:03:13]} Be7 {[%emt 0:02:53]} 11. Be3 {[%emt 0:03:19]} O-O {[%emt 0:01:43]} 12. h3 {[%emt 0:00:35]} Be6 {[%emt 0:01:40]} 13. Qd2 {[%emt 0:03:03]} h6 {[%emt 0:05:42]} 14. Qe2 {[%emt 0:07:33]} c5 {[%emt 0:03:55]} 15. Nd5 {[%emt 0:01:01]} f5 {[%emt 0:01:12]} 16. Nxe7+ {[%emt 0:03:23]} (16. exf5 $11 {ist überlegen.} Bxd5 17. cxd5) 16... Qxe7 $15 {[%emt 0:00:05]} 17. exf5 {[%emt 0:00:05]} Bxf5 {[%emt 0:00:16]} 18. Nd2 {[%emt 0:03:38]} Qf7 {[%emt 0:04:52]} 19. Ne4 $1 {[%emt 0:06:42]} Qg6 {[%emt 0:05:13]} 20. Qf3 {[%emt 0:00:05]} Rab8 {[%emt 0:15:18]} (20... Bxe4 {vereinfacht} 21. Qxe4 Qxe4 22. dxe4 a5) 21. b3 {[%emt 0:03:03]} Rf7 {[%emt 0:03:09]} 22. Rad1 {[%emt 0:06:45]} Rbf8 {[%emt 0:01:54]} 23. Kh2 {[%emt 0:02:49]} Kh8 {[%emt 0:03:47]} 24. Qg3 {[%emt 0:08:33]} Qh5 {[%emt 0:02:16]} 25. f3 {[%emt 0:03:12]} Be6 {[%emt 0:00:35]} 26. Rf1 {[%emt 0:00:23]} Nb8 {[%emt 0:01:37]} 27. Bd2 {[%emt 0:05:07]} Nc6 {[%emt 0:00:57]} 28. Bc3 {[%emt 0:00:06]} Ne7 {[%emt 0:03:02]} 29. Qe1 {[%emt 0:03:20]} Rf4 {[%emt 0:06:23]} 30. Ng3 {[%emt 0:04:01]} Qg6 {[%emt 0:02:32]} 31. Ba5 {[%emt 0:03:48]} Rh4 {[%emt 0:14:03]} 32. Bxc7 $2 {[%emt 0:05:57] [#]} (32. Ne2 $11 Qg5 (32... Nf5 33. Bd2 $11) 33. Bd2) 32... Bxh3 $1 $19 {[%emt 0:06:46]} 33. gxh3 {[%emt 0:00:05] [#]} Qe6 $1 {[%emt 0:00:05]} 34. Rd2 {[%emt 0:00:33]} (34. Kg1 Rxh3 35. Rd2 Ng6) 34... Ng6 {[%emt 0:02:47]} (34... Qxh3+ 35. Kg1 Rf6 (35... Nf5 36. Rg2 $16) 36. Rg2 $11) 35. Kg1 {[%emt 0:02:50]} Nf4 {[%emt 0:00:13]} ({Minderwertig wäre} 35... Qxh3 36. Bxd6 Rf6 37. Bxc5 $16 (37. Bxe5 Re6 $14)) (35... Qd7 36. Ne4 Rxh3 (36... Qxc7 37. Rg2 $14) 37. Bxd6 Rfxf3 38. Rxf3 (38. Nxc5 $2 Rhg3+ $19) (38. Bxc5 $2 Nh4 $19) 38... Rxf3 39. Rg2 $11 (39. Nxc5 $2 Qxd6 40. Ne4 Qd4+ 41. Nf2 Rf4 $19) (39. Bxc5 Nf4 $11)) 36. Rh2 {[%emt 0:01:23]} (36. Nf5 $142 Rxh3 37. Nh4) 36... Rxh3 $19 {[%emt 0:03:49]} 37. Rxh3 {[%emt 0:02:20]} Qxh3 {[%emt 0:00:05]} 38. Qf2 {[%emt 0:00:05]} Qd7 {[%emt 0:00:14]} ({Lieber nicht} 38... Nxd3 39. Qh2 Qd7 40. Qd2 $16) 39. Qe3 {[%emt 0:03:09]} Qxc7 {[%emt 0:00:14]} 40. Ne2 {[%emt 0:00:16]} Qd7 {[%emt 0:01:44]} 41. Nxf4 {[%emt 0:00:52]} Rxf4 {[%emt 0:00:06]} ({Nicht} 41... exf4 42. Qe4 $17) 42. Kf2 {[%emt 0:01:10]} Rh4 {[%emt 0:01:08]} 43. Rg1 {[%emt 0:00:55]} Qf5 {[%emt 0:01:28]} 44. a3 {[%emt 0:01:10]} a5 {[%emt 0:00:23]} 45. Rg2 {[%emt 0:02:45]} Rh1 $2 {[%emt 0:00:17]} (45... Kh7 $19 {...Rd4 ist eine echte Drohung.} 46. Ke2 Qf6) 46. Qd2 $2 {[%emt 0:00:34][%mdl 8192]} (46. Qe4 $17 {nur so!} Qxe4 47. dxe4) 46... Kh7 $19 {[%emt 0:01:00]} 47. Ke2 {[%emt 0:04:07]} (47. Qe2 $142) 47... Qh3 $19 {[%emt 0:01:35]} 48. Rf2 {[%emt 0:00:48]} Ra1 {[%emt 0:00:26]} 49. Qxa5 {[%emt 0:01:33]} Qh1 {[%emt 0:00:12]} 50. Ke3 {[%emt 0:03:13]} (50. Qd2 $142) 50... Qg1 $19 {[%emt 0:00:23]} 51. f4 {[%emt 0:02:15]} exf4+ {[%emt 0:00:14]} 0-1

[Event "VIII Open Semana Santa 2024"]
[Site "San Vicente del Raspeig"]
[Date "2024.03.28"]
[Round "2.6"]
[White "Adhiban, B.."]
[Black "Povshednyi, Ivan"]
[Result "1-0"]
[ECO "B67"]
[WhiteElo "2541"]
[BlackElo "2250"]
[Annotator "TA"]
[PlyCount "57"]
[EventDate "2024.03.27"]
[EventType "swiss"]
[EventCountry "ESP"]
[SourceTitle "playchess.com"]
[Source "ChessBase"]
[SourceQuality "1"]
[TimeControl "5400+30"]

{[%evp 17,57,14,14,18,18,12,39,33,48,37,44,39,47,54,60,49,56,54,44,49,43,62,56,0,18,7,73,59,90,77,97,97,123,173,193,184,178,165,180,163,546,522]} 1. e4 {[%emt 0:00:03]} c5 {[%emt 0:00:12]} 2. Nf3 {[%emt 0:00:04]} Nc6 {[%emt 0:00:19]} 3. d4 {[%emt 0:00:07]} cxd4 {[%emt 0:00:08]} 4. Nxd4 {[%emt 0:00:01]} Nf6 {[%emt 0:00:01]} 5. Nc3 {[%emt 0:00:01]} d6 {[%emt 0:00:01]} 6. Bg5 {[%emt 0:00:51]} e6 {[%emt 0:00:09]} 7. Qd2 {[%emt 0:00:18]} a6 {[%emt 0:00:11]} 8. O-O-O {[%emt 0:01:16]} Bd7 {[%emt 0:00:08]} 9. Nxc6 {[%emt 0:06:20]} Bxc6 {[%emt 0:00:34]} 10. f3 {[%emt 0:00:04]} Be7 {[%emt 0:01:46]} 11. Kb1 {[%emt 0:03:24]} Qc7 {[%emt 0:05:03]} 12. h4 {[%emt 0:25:27] White is slightly better.} h5 {[%emt 0:15:09]} 13. Ne2 {[%emt 0:03:58]} b5 {[%emt 0:03:37]} 14. Nd4 {[%emt 0:04:11]} Bd7 {[%emt 0:00:16]} 15. Bd3 {[%emt 0:00:15]} Qb6 {[%emt 0:15:40]} 16. Be3 {[%emt 0:05:20][%cal Od4e6] Nxe6! would now be deadly.} Qb7 {[%emt 0:00:38]} 17. Rhe1 {[%emt 0:01:01]} b4 {[%emt 0:03:33]} 18. Bg5 {[%emt 0:01:27]} Qb6 {[%emt 0:01:38]} 19. Bc4 {[%emt 0:06:24]} Qc7 {[%emt 0:27:20]} 20. Bd3 {[%emt 0:12:30]} (20. Qxb4 $2 d5 21. Qd2 dxc4 $19 (21... Qxc4 $2 22. e5 $17)) (20. Bf1 $14) 20... a5 {[%emt 0:10:17]} 21. f4 {[%emt 0:08:07][%cal Bf3f4,Bf4f5][%mdl 32]} Qb6 {[%emt 0:03:13]} (21... Qc5 $11 {remains equal.} 22. Nb3 Qa7) 22. Nf3 {[%emt 0:00:15][%cal Bd4f3,Bf3g5,Bg5f7][%mdl 32] And now e5 would win. White is more active.} Ng4 {[%emt 0:04:59]} 23. Bxe7 {[%emt 0:01:24]} Kxe7 {[%emt 0:00:02]} 24. e5 {[%emt 0:00:07]} Rh6 {[%emt 0:05:37]} 25. exd6+ {[%emt 0:06:09]} (25. f5 $16 {Threatens to win with exd6+.} Nxe5 26. Nxe5 dxe5 27. Rxe5) 25... Qxd6 $18 {[%emt 0:00:29]} 26. f5 {[%emt 0:00:04] Hoping for Qg5+.} Kf8 {[%emt 0:00:41] [#]} 27. Ng5 $1 {[%emt 0:00:32] Black must now prevent Qe2.} Re8 {[%emt 0:00:48]} (27... exf5 $2 {perishes.} 28. Nxf7 Kxf7 29. Bc4+ Kf8 30. Qxd6+ Rxd6 31. Rxd6 $18) 28. f6 {[%emt 0:02:24]} Nxf6 {[%emt 0:01:06] [#]} (28... Qd5) 29. Nxf7 $1 {[%emt 0:00:08][%mdl 512] Weighted Error Value: White=0.05 (flawless) /Black=0.42.  Mistake:       	White=2     	Black=2      Inaccurate:     	---       	Black=2      OK:         	White=11    	Black=7      Best:        	White=2     	---        Brilliant:      	White=1     	---} 1-0